Cogmind - Beta 16 @@@ ROGUE MODE // 2025.11.11 @ 19:19:21 Player: chebyrekser Result: Destroyed by Autobeam Turret with Autobeam Performance ------------- Evolutions (0) 0 Regions Visited (3) 600 Robots Destroyed (48) 240 Value Destroyed (908) 908 Prototype IDs (12) 240 Alien Tech Used (0) 0 Bonus (81) 81 TOTAL SCORE: 2069 Bonus ------- Follower Combat Kills 81 Cogmind --------- Core Integrity 0/250 Matter 93/300 Energy 250/250 System Corruption 0% Temperature Cool (18) Movement Treading (480) Ox4 Location -10/Subcaves Parts ------- > --- POWER (1) -------- Ion Engine > --- PROPULSION (2) --- Light Treads Wheel > --- UTILITY (2) ------ Huge Storage Unit Medium Armor Plating > --- WEAPON (2) ------- Rocket Launcher Mining Laser > --- INVENTORY (25) --- Subdweller Power Source Light Treads Light Treads Compact Wheel Subdweller Monowheel Subdweller Monowheel Subdweller Monowheel Heat Sink Small Storage Unit Large Matter Pod (0) High-capacity Matter Pod (200) Subdweller Optics Subdweller Optics Seismic Detector Medium Armor Plating Medium Armor Plating Gun Armor Scrap Shield Hacking Suite Subdweller Laser Subdweller Laser Assault Rifle Battle Rifle Rocket Launcher Peak State ------------ > --- POWER ------------ Ion Engine > --- PROPULSION ------- Light Treads Subdweller Monowheel > --- UTILITY ---------- Huge Storage Unit Medium Armor Plating > --- WEAPON ----------- Subdweller Beam Cannon Subdweller Machine Gun > --- INVENTORY -------- Light Treads Light Treads Wheel Wheel Compact Wheel Heat Sink Small Storage Unit Large Matter Pod High-capacity Matter Pod Subdweller Optics Subdweller Optics Seismic Detector Medium Armor Plating Medium Armor Plating Medium Armor Plating Gun Armor Hacking Suite Subdweller Laser Assault Rifle Assault Rifle Rocket Launcher Rocket Launcher Mining Laser [Rating: 15] Favorites ----------- Power Ion Engine Engine Ion Engine Propulsion Light Treads Treads Light Treads Wheel Compact Wheel Utility Huge Storage Unit Device Seismic Detector Storage Huge Storage Unit Protection Medium Armor Plating Weapon Assault Rifle Energy Gun Medium Laser Energy Cannon Subdweller Beam Cannon Ballistic Gun Assault Rifle Launcher Rocket Launcher Special Weapon Mining Laser Build | -11 -10 -10 -10 ------- Run | Yrd Mat Min Sub Slots Evolved . | . . . . Power . | . . . . Propulsion . | . . . . Utility . | . . . . Weapon . | . . . . Parts Attached 32 | 7 10 2 13 Power 4 | 1 1 1 1 Engine 4 | 1 1 1 1 Core . | . . . . Reactor . | . . . . Propulsion 10 | 2 4 . 4 Treads 6 | 2 2 . 2 Leg . | . . . . Wheel 4 | . 2 . 2 Hover . | . . . . Flight . | . . . . Utility 8 | 2 3 1 2 Device 4 | 1 2 . 1 Storage 2 | 1 1 . . Processor . | . . . . Hackware . | . . . . Protection 2 | . . 1 1 Artifact . | . . . . Weapon 10 | 2 2 . 6 Energy Gun 4 | 1 1 . 2 Energy Cannon 1 | . . . 1 Ballistic Gun 3 | 1 . . 2 Ballistic Cannon . | . . . . Launcher 1 | . . . 1 Special Weapon 1 | . 1 . . Impact Weapon . | . . . . Slashing Weapon . | . . . . Piercing Weapon . | . . . . Special Melee Weapon . | . . . . Unidentified Prototypes . | . . . . Parts Lost 9 | . 2 . 7 Power 1 | . . . 1 Propulsion 2 | . . . 2 Utility 2 | . 1 . 1 Weapon 4 | . 1 . 3 Highest Loss Streak 4 | . 1 . 4 To Critical Strikes . | . . . . Average Backups 20 | 4 12 24 24 Power . | . 1 1 . Propulsion 5 | 3 4 7 6 Utility 9 | . 4 10 11 Weapon 4 | . 2 6 5 Tool/Special . | . . . . Unused Backups 25 | . 6 1 18 Power 1 | . . . 1 Propulsion 6 | . 3 . 3 Utility 13 | . 2 1 10 Weapon 5 | . 1 . 4 Tool/Special . | . . . . Average Slot Usage (%) 99 | . 99 100 99 Engine 14 | . 14 14 14 Treads 13 | . 15 2 15 Wheel 14 | . 12 26 12 Device 12 | . 13 14 10 Storage 14 | . 14 14 14 Protection 1 | . . . 3 Energy Gun 12 | . 14 14 11 Ballistic Gun 13 | . 13 14 13 Peak Build Rating 15 | 7 10 11 15 Average Rating 10 | 5 8 10 12 On Entrance 7 | . 7 10 11 Avg Prop Armor Cover (%) 12 | . . . 12 Naked Turns . | . . . . Heaviest Build 104 | 15 90 94 104 Greatest Support 40 | 40 40 40 40 Greatest Overweight (x) 9 | 1 3 3 9 Average Overweight (x) 3 | . 1 2 5 Largest Inventory Capacity 25 | 8 25 25 25 Average Capacity 22 | 7 17 25 25 Most Carried 25 | 7 24 25 25 Average Carried 20 | 4 12 24 24 Final Capacity 25 | 8 25 25 25 Final Carried 25 | 7 24 25 25 Class Distribution -------------------- 98% | Mutant Dominant Class ---------------- Mutant | -10/Materials Mutant | -10/Mines Mutant | -10/Subcaves Resources | -11 -10 -10 -10 ----------- Run | Yrd Mat Min Sub Matter Collected 2374 | 315 760 431 868 Remotely . | . . . . Salvage Created 1532 | 164 815 140 413 Parts 101 | 16 42 11 32 Haulers Intercepted 2 | . 2 . . Recyclers Shooed 6 | 2 3 1 . Parts Field Recycled . | . . . . Retrieved Matter . | . . . . Parts Self-Destructed 21 | . . . 21 Prevented . | . . . . Parts Restored . | . . . . Kills | -11 -10 -10 -10 ------- Run | Yrd Mat Min Sub Combat Hostiles Destroyed 26 | . 10 3 13 Guns 24 | . 10 3 11 Cannons 2 | . . . 2 Classes Destroyed 11 | 2 6 . 3 Worker 2 | . 2 . . Tunneler 7 | 4 2 1 . Hauler 2 | . 2 . . Recycler 6 | 1 4 1 . Operator 1 | . 1 . . Turret 1 | . . . 1 Watcher 3 | . 3 . . Swarmer 10 | . 3 3 4 Grunt 8 | . 7 . 1 Sentry 1 | . . . 1 Subdweller 7 | . . . 7 Best Kill Streak 4 | 3 2 4 4 Combat Bots Only 4 | . 2 3 4 Max Kills in Single Turn 2 | 1 1 1 2 Gunslinging 1 | . . . 1 Exploded . | . . . . Melee . | . . . . Uniques/NPCs Destroyed . | . . . . Combat | -11 -10 -10 -10 -------- Run | Yrd Mat Min Sub Hostile Shots Fired 189 | . 68 8 113 Missed 58 | . 16 . 42 Hits 131 | . 52 8 71 Projectile 131 | . 52 8 71 Damage Taken 1598 | . 534 77 987 Core 250 | . 69 6 175 Absorbed by Shields . | . . . . Regen/Repaired (Parts) 98 | . 98 . . Core Remaining (%) 100 | 100 . . . Volleys Fired 202 | 15 102 10 75 Largest 2 | 2 2 2 2 Hottest 110 | 70 100 70 110 Shots Fired 343 | 30 179 19 115 Gun 299 | 30 175 19 75 Cannon 13 | . . . 13 Launcher 26 | . . . 26 Special 5 | . 4 . 1 Kinetic 149 | 15 77 9 48 Thermal 168 | 15 102 10 41 Explosive 26 | . . . 26 Electromagnetic . | . . . . Robot Hit Streak 19 | 7 9 6 19 Robot Miss Streak 6 | 3 6 1 2 Penetration Max . | . . . . Secondary Targets 3 | . 2 . 1 Max Gunslinging Chain 1 | . 1 . 1 Shots Hit Robots 206 | 17 112 13 64 Core Hits 85 | 6 39 6 34 Critical Kills . | . . . . Critical Parts Destroyed . | . . . . Critical Strikes 11 | 1 7 1 2 Burn 11 | 1 7 1 2 Melee Attacks . | . . . . Impact . | . . . . Slashing . | . . . . Piercing . | . . . . Sneak Attacks . | . . . . Combat Hostiles . | . . . . Follow-up Attacks . | . . . . Damage Inflicted 3256 | 212 1428 173 1443 Guns 2721 | 212 1428 173 908 Cannons 301 | . . . 301 Explosions 234 | . . . 234 Melee . | . . . . Ramming . | . . . . Kinetic 1296 | 99 601 85 511 Thermal 1726 | 113 827 88 698 Explosive 234 | . . . 234 Electromagnetic . | . . . . Impact . | . . . . Slashing . | . . . . Piercing . | . . . . Highest Corruption . | . . . . Average Corruption . | . . . . Corruption Purged . | . . . . Corruption Blocked . | . . . . Overload Shots . | . . . . Overflow Damage . | . . . . Projectiles . | . . . . Explosions . | . . . . Melee . | . . . . Knockbacks . | . . . . Impact . | . . . . Kinetic . | . . . . Secondary . | . . . . Self-Inflicted Damage . | . . . . Shots . | . . . . Rammed . | . . . . Targets Rammed . | . . . . Kicked . | . . . . Crushed . | . . . . Highest Temperature 132 | 36 132 27 43 Average Temperature 29 | 15 33 10 19 Received Heat Transfer 471 | . 207 9 255 Siege Activations . | . . . . Martial Activations . | . . . . Shielding Activations . | . . . . Robots Disrupted . | . . . . Combat Hostiles . | . . . . Robots Corrupted . | . . . . Combat Hostiles . | . . . . Parts Fried . | . . . . Impact Corruptions . | . . . . Robots Melted . | . . . . Combat Hostiles . | . . . . Parts Melted 7 | . 6 1 . Heat Transferred 4913 | 407 2923 333 1250 Parts Sabotaged . | . . . . Parts Stolen . | . . . . Parts Stripped . | . . . . Power Chain Reactions . | . . . . Alert | -11 -10 -10 -10 ------- Run | Yrd Mat Min Sub Maximum Alert Level . | . . . . Low Security (%) 100 | 100 100 100 . Level 1 . | . . . . Level 2 . | . . . . Level 3 . | . . . . Level 4 . | . . . . Level 5 . | . . . . High Security . | . . . . Max Security . | . . . . Peak Influence 78 | 10 72 78 . Initial . | . . . . Average 15 | . 15 18 . Influence Increases 1138 | 25 387 166 560 Destroy 0b10 Robot/C 460 | . 200 120 140 Destroy 0b10 Robot/NC 105 | 25 70 10 . Destroy Leader 80 | . 60 20 . Allied During Kill 16 | . . 16 . Successful Hack 38 | . 38 . . Destroy Structure 4 | . 4 . . Lose Combat Pursuer 435 | . 15 . 420 Influence Decreases 749 | 25 387 166 171 Time Decay 709 | 25 377 166 141 Lost Part 20 | . 10 . 10 Lost Ally 20 | . . . 20 Squads Dispatched 3 | . 3 . . Investigation 1 | . 1 . . Extermination . | . . . . Reinforcement 2 | . 2 . . Assault . | . . . . Garrison . | . . . . Intercept . | . . . . Searches Triggered . | . . . . Construction Impeded . | . . . . Haulers Reinforced . | . . . . Active Scanning Responses . | . . . . Cargo Convoy Interrupts . | . . . . Stealth | -11 -10 -10 -10 --------- Run | Yrd Mat Min Sub Distress Signals 2 | . 1 1 . Communications Jammed . | . . . . Distress Signals . | . . . . Times Spotted 48 | . 19 6 23 Peak Tracking Total 6 | . 3 3 6 Tactical Retreats 7 | . 1 . 6 Traps | -11 -10 -10 -10 ------- Run | Yrd Mat Min Sub Traps Triggered 2 | . 1 . 1 Indirectly . | . . . . Trap Hack Attempts . | . . . . Triggered . | . . . . Disarmed . | . . . . Reprogrammed . | . . . . Reused . | . . . . Traps Extracted . | . . . . Installed . | . . . . Triggered . | . . . . Machines | -11 -10 -10 -10 ---------- Run | Yrd Mat Min Sub Machines Disabled 5 | . . . 5 Max in Single Turn 2 | . . . 2 Machines Repaired . | . . . . Machines Dismantled . | . . . . Machines Sabotaged . | . . . . Overloaded Fab Kills . | . . . . Hacking | -11 -10 -10 -10 --------- Run | Yrd Mat Min Sub Machines Accessed 11 | . 9 . 2 Terminals 6 | . 6 . . Fabricators . | . . . . Repair Stations 1 | . 1 . . Recycling Units 2 | . 2 . . Scanalyzers . | . . . . Garrison Access . | . . . . Total Hacks 33 | . 27 . 6 Successful 23 | . 17 . 6 Failed 9 | . 9 . . Catastrophic . | . . . . Database Lockouts 1 | . 1 . . Manual 21 | . 21 . . Terminals 22 | . 22 . . Fabricators . | . . . . Repair Stations 2 | . 2 . . Recycling Units 3 | . 3 . . Scanalyzers . | . . . . Garrison Access . | . . . . Terminal Hacks 10 | . 4 . 6 Record 5 | . . . 5 Robot Analysis 3 | . 3 . . Alert Level 1 | . 1 . . Proto ID Catalog 1 | . . . 1 Fabricator Hacks . | . . . . Repair Station Hacks 2 | . 2 . . Scan Component 1 | . 1 . . Repair 1 | . 1 . . Recycling Unit Hacks 1 | . 1 . . Retrieve Components 1 | . 1 . . Scanalyzer . | . . . . Garrison Access Hacks . | . . . . Unauthorized Hacks 10 | . 10 . . Terminals 10 | . 10 . . Assimilate 2 | . 2 . . Botnet 2 | . 2 . . Operators 1 | . 1 . . Skim 5 | . 5 . . Fabricators . | . . . . Repair Stations . | . . . . Recycling Units . | . . . . Scanalyzers . | . . . . Garrison Access . | . . . . Data Cores Recovered . | . . . . Used . | . . . . Hacking Detections 7 | . 7 . . Full Trace Events . | . . . . Feedback Events . | . . . . Feedback Blocked . | . . . . Robot Schematics Acquired . | . . . . Robots Built . | . . . . Authchips . | . . . . Time . | . . . . Total Robot Build Rating . | . . . . Part Schematics Acquired . | . . . . Parts Built . | . . . . Authchips . | . . . . Time . | . . . . Total Part Build Rating . | . . . . Part Studies Acquired . | . . . . Parts Repaired 1 | . 1 . . Time 13 | . 13 . . Parts Recycled . | . . . . Recycled Matter . | . . . . Retrieved Matter . | . . . . Retrieved Components 1 | . 1 . . Parts Scanalyzed . | . . . . Part Schematics Acquired . | . . . . Parts Damaged . | . . . . Bothacking | -11 -10 -10 -10 ------------ Run | Yrd Mat Min Sub Used RIF Installer . | . . . . Robots Hacked . | . . . . Non-combat . | . . . . Combat . | . . . . Robot Hacks Applied . | . . . . Relay Couplers Released . | . . . . Fabnet Peak Effective % . | . . . . Robots Rewired . | . . . . Allies Hacked . | . . . . Hacks Repelled . | . . . . Allies | -11 -10 -10 -10 -------- Run | Yrd Mat Min Sub Total Allies 4 | . 1 3 . Largest Group 4 | . 1 4 3 Highest-Rated Group 50 | . 10 50 42 Highest-Rated Ally 16 | . 10 16 16 Total Orders 5 | . 2 . 3 STAY 3 | . 1 . 2 FOLLOW 2 | . 1 . 1 Ally Attacks 22 | . . 11 11 Total Damage 266 | . . 109 157 Kills 5 | . . 3 2 Allies Corrupted . | . . . . Allies Melted . | . . . . Intel | -11 -10 -10 -10 ------- Run | Yrd Mat Min Sub Active Infowar (turns) 4248 | 75 1353 532 2288 Seismic 4248 | 75 1353 532 2288 Robot Analysis Total 3 | . 3 . . Derelict Logs Recovered 2 | . . 2 . Drone Launches . | . . . . Drone Recoveries . | . . . . Exploration | -11 -10 -10 -10 ------------- Run | Yrd Mat Min Sub Turns Passed 5711 | 182 1704 762 3063 Spaces Moved 2767 | 80 841 509 1337 Core 8 | 8 . . . Treads 489 | 72 383 8 26 Legs . | . . . . Wheels 2270 | . 458 501 1311 Hover . | . . . . Flight . | . . . . Fastest Speed 50 | 50 135 135 135 Average Speed 163 | 150 152 137 181 Slowest Speed 320 | 160 320 320 320 Overloaded Moves . | . . . . Propulsion Burnouts . | . . . . Robots Hopped . | . . . . Potential Cave-ins . | . . . . Cave-ins Triggered . | . . . . Exploration Rate (%) 65 | 5 96 99 63 Regions Visited 3 Branch Regions 2 Pre-discovered Areas 4 | . 2 1 1 Known Exits Taken 1 | . 1 . . Unknown Exits Taken 2 | 1 . 1 . Scrap Searched 1 | . . 1 . Spaces Dug 25 | . 2 . 23 Terrain Destroyed 135 | . 4 . 131 Melee . | . . . . Projectile 5 | . 4 . 1 AOE 130 | . . . 130 Terrain Rammed . | . . . . Walls Destroyed . | . . . . Machines Disabled . | . . . . Actions | -11 -10 -10 -10 --------- Run | Yrd Mat Min Sub Total 3567 | 108 1074 547 1838 Wait 416 | . 69 8 339 Move 2764 | 79 840 508 1337 Hop . | . . . . Pick Up 54 | 7 27 3 17 Fast Attach 8 | 7 1 . . Attach 8 | . 1 . 7 Detach . | . . . . Swap 89 | . 23 15 51 Drop 26 | . 11 3 12 Fire 202 | 15 102 10 75 Melee . | . . . . Ram . | . . . . Kick . | . . . . Crush . | . . . . Escape Stasis . | . . . . Rewire . | . . . . Trap . | . . . . Miscellaneous . | . . . . Route ------- -11/Scrapyard -10/Materials (discovered 5 exits: *Mat x3 / *Min x2) -10/Mines (discovered 4 exits: *Mat x2 / *Exi / *Sub) -10/Subcaves (discovered 3 exits: *Mat x2 / [*Rec]) History --------- Turn | Location | Event 4 | -11/Scrapyard | Discovered new exit (range 15) 183 | -11/Scrapyard | Entered Materials 311 | -10/Materials | Build established: Mutant 387 | -10/Materials | Discovered new exit (range 16) 501 | -10/Materials | Discovered new exit (range 11) 828 | -10/Materials | Discovered new exit (range 15) 982 | -10/Materials | Identified exit to Mines 1101 | -10/Materials | Loaded intel: 1 repair station location 1143 | -10/Materials | Learned location of Mines (-10) 1176 | -10/Materials | Learned Recycling recycling unit intel 1200 | -10/Materials | Learned 4 Subcaves zone layouts 1242 | -10/Materials | Identified exit to Materials 1254 | -10/Materials | Central database locked down 1276 | -10/Materials | Discovered exit to Materials (range 15) 1281 | -10/Materials | Learned 8 Materials zone layouts 1386 | -10/Materials | Learned location of 2 exits from Mines 1699 | -10/Materials | Repaired Lgt. Treads 1887 | -10/Materials | Entered Mines 1887 | -10/Mines | Accompanied by 1 ally 1888 | -10/Mines | Identified exit to Exiles 2001 | -10/Mines | Learned location of 1 exit from Materials 2001 | -10/Mines | Assisted by bots powering up and referring to "LRC-V3" 2012 | -10/Mines | Discovered exit to Materials (range 15) 2169 | -10/Mines | Deemed a non-threat by the Exiles lab entrance 2552 | -10/Mines | Learned location of Storage (-9) 2634 | -10/Mines | Discovered new exit (range 6) 2649 | -10/Mines | Entered Subcaves 2649 | -10/Subcaves | Accompanied by 3 allies 2650 | -10/Subcaves | Approached by a straggling Scientist 2650 | -10/Subcaves | Identified exit to Materials 2781 | -10/Subcaves | Discovered exit to Materials (range 9) 3052 | -10/Subcaves | Visited Clippyterm 3057 | -10/Subcaves | Learned location of Extension (-4) 3057 | -10/Subcaves | Learned Factory fabricator intel 3085 | -10/Subcaves | Discovered new exit (range 16) 3250 | -10/Subcaves | Visited 4L-MR0's lab 3269 | -10/Subcaves | Found Gun Armor 4019 | -10/Subcaves | A swath of the cavern ceiling suddenly collapsed 4099 | -10/Subcaves | Core integrity fell below 50% 4297 | -10/Subcaves | Ambushed by Subdwellers from Twisted Machinery 4360 | -10/Subcaves | Lost 4 parts (2n2w) 4662 | -10/Subcaves | Core integrity fell below 20% 5608 | -10/Subcaves | Ambushed by Subdweller buried in earth 5712 | -10/Subcaves | Destroyed by Autobeam Turret with Autobeam Last Messages --------------- 04704_ SF-FYC(R) destroyed. 04729_ Acquired 56 matter. 04732_ Dropped Sub. Laser. 04733_ Dropped Assault Rifle. 04734_ Acquired Sub. Laser. 05165_ Dropped Wheel. 05172_ Acquired Sub. Monowheel. 05257_ Acquired 17 matter. 05364_ Acquired 34 matter. 05366_ Acquired 5 matter. 05601_ The unstable cave ceiling collapses. 05608_ YC-7Z9(R) destroyed. 05612_ The unstable cave ceiling collapses. 05660_ Dropped Lrg. Matter Pod. 05661_ Extracted 150 matter. 05661_ Acquired Lrg. Matter Pod. 05663_ The unstable cave ceiling collapses. 05704_ Machine disabled. 05708_ Autobeam Turret destroyed. 05709_ The unstable cave ceiling collapses. Map ----- +----------------------------------------------------+ | ## &!& ##??????????????????????????? | | ?# ## ! ##??????????????????????????? | | ?## ## #??????????????????????????? | | ??## ## # ## #??????????????????????????? | | ##?### ##?## ### ##??????????????????????????? | | ##?## ##??# #?####???????????????????????????? | | ### #?## #????????????????????????????????? | | ### ### ##????????????????????????????????? | | ### ### #?????????????????????????????????? | | #?# ##????????????????????????????????? | | ### #????????????????????????????????? | | ##??????????##???????????????????? | | #?????????# < ????????????????? | | ## #???????? ??????????????? | | ## #?###??????? ????????????? | | ### #??????????? t ????????????? | | ### ##??????????? #???????????? | | ###???????????? #???????????? | | #???#######???? ????????????? | | #### # #???#"""""####? ###??????????? | | ???# # #???#""X""## ## ## ???????????? | | ???# # ##???#" "## # #???????????? | | ???# # ##???### #### # #???????????? | | ??## # #????## ### # # #?????????### | | ??# ##???## #?????????## " | | ### ###### @ # #?????????# " | | # ## ## #?????????# "" | | ##### # #?????????#" | | #???# #??????????# "" | | ## ###?# # # ##??????????#""" | | ### ### #### # #???????????#" | | ## ##?## #### #????????????# " | | #### ##???# ### #???####?????##" | | #??####????## ### ##?## ######## ! | | ????###?????# ##?### ## ### ## | | ????# ##?#### #???# ### ### ### | | ???## ### ##??# # # ##### ## | | #### #??## ####???## | | ## #???## # ## ####???#???# ## | | ##############??##### ## ## | | ### #???##??????# # | | ## ### # #??? ??????# | | ## ### #### #??? ???? | | # #?# #?# ##??# ???? | | ##### ### ##?? #????? ### ## | | ##?# #### #?? ##???????## ## | | #?# ##??## #?? ##??? #### ### | | #### ##??## ### ##??# ## ### | | ######?# #???## ##?# ###?###### | | ##??##### ###??### #?# #??????### | +----------------------------------------------------+ Best States ------------- Heat Dissipation 35 Energy Generation 10 Energy Capacity 250 Matter Stores 300 Matter Capacity 300 Sight Range 16 Terrain Scan Density 10 Armor Coverage 225 Evasion (%) 40 Recoil Reduction 2 Item Schematics ----------------- None Robot Schematics ------------------ None Fabricated ------------ Nothing Repaired ---------- Lgt. Treads | 30% | -10/Materials Studied --------- None Alien Tech Used ----------------- None Achievements -------------- None Challenges ------------ None Game ------ Seed WeightSpliceInterrupter Manual? 0 Play Time 00:27:23 Cumulative 258.2 hours Start 2025.11.11 @ 18:51:08 End 2025.11.11 @ 19:19:21 Sessions 1 Manual Loads 0 Difficulty Rogue Special Mode None Game No. 75 Rogue 69 Adventurer 0 Explorer 6 Win Type - Total 14 Types 6/1/2/1/1/0/1/1/0/1 Lore% 81 Gallery% 74 Achievement% 59 Wizard Run 0 Options --------- Layout 1 ASCII 0 Keyboard 0 Movement Mouse Keybinds 0 Fullscreen 2 Font 24/Smallcaps Map View 50x35 Zoom Use 0% Tactical HUD 1 Map Filters NONE Filters NONE Steam 1 RUN: 83a536fa-c405-47dc-935b-9094b6360365